[Event "Titled Tuesday Blitz April 12 Early 2022"]
[White "Kostina, Nadezhda"]
[Black "Nguyen Hong Nhung"]
[WhiteFideId "4195876"]
[BlackFideId "12412201"]
[WhiteElo "1982"]
[BlackElo "1758"]
[Result "0-1"]
[Round "07"]
[TimeControl "180+1"]
[Date "2022.04.13"]
[WhiteClock "0:00:01"]
[BlackClock "0:00:05"]

1. e4 {[%clk 0:03:00]}  c5 {[%clk 0:03:00]} 2. Nf3 {[%clk 0:02:55]}  e6 {[%clk 0:02:59]} 3. d4 {[%clk 0:02:53]}  cxd4 {[%clk 0:03:00]} 4. Nxd4 {[%clk 0:02:53]}  Nc6 {[%clk 0:03:01]} 5. Nc3 {[%clk 0:02:50]}  Qc7 {[%clk 0:03:01]} 6. Nde2 {[%clk 0:02:47]}  a6 {[%clk 0:02:59]} 7. g3 {[%clk 0:02:46]}  Nf6 {[%clk 0:02:57]} 8. Bg2 {[%clk 0:02:46]}  Be7 {[%clk 0:02:56]} 9. O-O {[%clk 0:02:44]}  O-O {[%clk 0:02:57]} 10. b3 {[%clk 0:02:27]}  b5 {[%clk 0:02:53]} 11. Bb2 {[%clk 0:02:25]}  Bb7 {[%clk 0:02:51]} 12. Qd2 {[%clk 0:02:14]}  Rfd8 {[%clk 0:02:46]} 13. a4 {[%clk 0:02:13]}  b4 {[%clk 0:02:45]} 14. Nd1 {[%clk 0:02:12]}  d5 {[%clk 0:02:45]} 15. e5 {[%clk 0:01:24]}  Nxe5 {[%clk 0:02:38]} 16. Qf4 {[%clk 0:01:24]}  Bd6 {[%clk 0:02:38]} 17. Qg5 {[%clk 0:01:19]}  h6 {[%clk 0:02:32]} 18. Qh4 {[%clk 0:01:18]}  Qxc2 {[%clk 0:02:29]} 19. Nd4 {[%clk 0:01:14]}  Qc7 {[%clk 0:02:24]} 20. Rc1 {[%clk 0:01:11]}  Qd7 {[%clk 0:02:20]} 21. Rc2 {[%clk 0:01:00]}  Rac8 {[%clk 0:02:17]} 22. Rd2 {[%clk 0:00:59]}  Ng6 {[%clk 0:02:15]} 23. Qh3 {[%clk 0:00:55]}  Be5 {[%clk 0:01:58]} 24. f4 {[%clk 0:00:49]}  Bb8 {[%clk 0:01:56]} 25. f5 {[%clk 0:00:47]}  exf5 {[%clk 0:01:44]} 26. Nxf5 {[%clk 0:00:46]}  Be5 {[%clk 0:01:24]} 27. Bxe5 {[%clk 0:00:37]}  Nxe5 {[%clk 0:01:25]} 28. Nxh6+ {[%clk 0:00:33]}  gxh6 {[%clk 0:01:22]} 29. Rxf6 {[%clk 0:00:32]}  Qxh3 {[%clk 0:01:21]} 30. Bxh3 {[%clk 0:00:32]}  Rc1 {[%clk 0:01:13]} 31. Kf2 {[%clk 0:00:27]}  Kg7 {[%clk 0:00:54]} 32. Rb6 {[%clk 0:00:24]}  Ba8 {[%clk 0:00:54]} 33. Ne3 {[%clk 0:00:23]}  Rc3 {[%clk 0:00:35]} 34. Nf5+ {[%clk 0:00:21]}  Kg8 {[%clk 0:00:29]} 35. Nxh6+ {[%clk 0:00:20]}  Kf8 {[%clk 0:00:30]} 36. Nf5 {[%clk 0:00:19]}  Rxb3 {[%clk 0:00:26]} 37. Rh6 {[%clk 0:00:19]}  Kg8 {[%clk 0:00:25]} 38. Ne7+ {[%clk 0:00:18]}  Kf8 {[%clk 0:00:24]} 39. Nf5 {[%clk 0:00:18]}  Ng6 {[%clk 0:00:22]} 40. Bg4 {[%clk 0:00:15]}  Ke8 {[%clk 0:00:17]} 41. h4 {[%clk 0:00:15]}  Rb8 {[%clk 0:00:14]} 42. h5 {[%clk 0:00:15]}  Nf8 {[%clk 0:00:15]} 43. Rh8 {[%clk 0:00:13]}  Rc3 {[%clk 0:00:11]} 44. Re2+ {[%clk 0:00:13]}  Kd8 {[%clk 0:00:11]} 45. Rxf8+ {[%clk 0:00:12]}  Kc7 {[%clk 0:00:12]} 46. Rxf7+ {[%clk 0:00:11]}  Kb6 {[%clk 0:00:11]} 47. Nd4 {[%clk 0:00:10]}  Kc5 {[%clk 0:00:09]} 48. Ne6+ {[%clk 0:00:09]}  Kc4 {[%clk 0:00:10]} 49. Rf4+ {[%clk 0:00:08]}  Kb3 {[%clk 0:00:09]} 50. Nd4+ {[%clk 0:00:08]}  Kxa4 {[%clk 0:00:07]} 51. Ra2+ {[%clk 0:00:08]}  Ra3 {[%clk 0:00:08]} 52. Bd7+ {[%clk 0:00:07]}  Ka5 {[%clk 0:00:07]} 53. Rxa3+ {[%clk 0:00:06]}  bxa3 {[%clk 0:00:07]} 54. Nc6+ {[%clk 0:00:07]}  Bxc6 {[%clk 0:00:07]} 55. Bxc6 {[%clk 0:00:07]}  Kb6 {[%clk 0:00:06]} 56. Bxd5 {[%clk 0:00:05]}  Kc5 {[%clk 0:00:05]} 57. Bf7 {[%clk 0:00:04]}  a2 {[%clk 0:00:05]} 58. Ra4 {[%clk 0:00:03]}  Rb2+ {[%clk 0:00:05]} 59. Kf3 {[%clk 0:00:02]}  Rh2 {[%clk 0:00:04]} 60. Rxa2 {[%clk 0:00:02]}  Rh1 {[%clk 0:00:03]} 61. Rxa6 {[%clk 0:00:01]}  Rf1+ {[%clk 0:00:04]} 62. Kg4 {[%clk 0:00:01]}  Rxf7 {[%clk 0:00:05]} 63. h6 {[%clk 0:00:01]}  Kb5 {[%clk 0:00:05]} 0-1


[Site "https://www.chess.com"]

[Event "Titled Tuesday Blitz April 12 Early 2022"]
[White "Lashkin, Jegor"]
[Black "Domingo Nunez, Alejandro"]
[WhiteFideId "13907808"]
[BlackFideId "22245561"]
[WhiteElo "2368"]
[BlackElo "2215"]
[Result "1-0"]
[Round "07"]
[TimeControl "180+1"]
[Date "2022.04.12"]
[WhiteClock "0:00:08"]
[BlackClock "0:00:01"]

1. Nf3 {[%clk 0:03:00]}  g6 {[%clk 0:03:00]} 2. d4 {[%clk 0:03:00]}  Bg7 {[%clk 0:03:00]} 3. e3 {[%clk 0:02:58]}  b6 {[%clk 0:03:00]} 4. b3 {[%clk 0:02:58]}  Bb7 {[%clk 0:03:01]} 5. Bb2 {[%clk 0:02:58]}  Nf6 {[%clk 0:03:00]} 6. Be2 {[%clk 0:02:57]}  O-O {[%clk 0:03:01]} 7. O-O {[%clk 0:02:58]}  c5 {[%clk 0:03:00]} 8. c4 {[%clk 0:02:53]}  e6 {[%clk 0:02:58]} 9. Nc3 {[%clk 0:02:50]}  Qe7 {[%clk 0:02:56]} 10. Qc2 {[%clk 0:02:40]}  Nc6 {[%clk 0:02:53]} 11. Rad1 {[%clk 0:02:36]}  cxd4 {[%clk 0:02:48]} 12. exd4 {[%clk 0:02:34]}  d5 {[%clk 0:02:48]} 13. Rfe1 {[%clk 0:02:21]}  Rfd8 {[%clk 0:02:46]} 14. cxd5 {[%clk 0:02:15]}  Nb4 {[%clk 0:02:46]} 15. d6 {[%clk 0:01:52]}  Qxd6 {[%clk 0:02:39]} 16. Qd2 {[%clk 0:01:53]}  Nbd5 {[%clk 0:02:34]} 17. Nb5 {[%clk 0:01:50]}  Qb4 {[%clk 0:02:03]} 18. Ba3 {[%clk 0:00:52]}  Qxd2 {[%clk 0:01:42]} 19. Nxd2 {[%clk 0:00:53]}  Bf8 {[%clk 0:01:21]} 20. Bxf8 {[%clk 0:00:52]}  Kxf8 {[%clk 0:01:22]} 21. Rc1 {[%clk 0:00:50]}  Ba6 {[%clk 0:00:44]} 22. Bc4 {[%clk 0:00:39]}  Bxb5 {[%clk 0:00:34]} 23. Bxb5 {[%clk 0:00:40]}  Nb4 {[%clk 0:00:34]} 24. a3 {[%clk 0:00:39]}  a6 {[%clk 0:00:16]} 25. Bf1 {[%clk 0:00:35]}  Nbd5 {[%clk 0:00:15]} 26. g3 {[%clk 0:00:36]}  Rac8 {[%clk 0:00:12]} 27. Nc4 {[%clk 0:00:32]}  b5 {[%clk 0:00:12]} 28. Ne5 {[%clk 0:00:32]}  Ne7 {[%clk 0:00:11]} 29. Rxc8 {[%clk 0:00:18]}  Rxc8 {[%clk 0:00:12]} 30. a4 {[%clk 0:00:18]}  Rc3 {[%clk 0:00:08]} 31. Rb1 {[%clk 0:00:15]}  bxa4 {[%clk 0:00:08]} 32. bxa4 {[%clk 0:00:15]}  a5 {[%clk 0:00:09]} 33. Rb8+ {[%clk 0:00:14]}  Kg7 {[%clk 0:00:08]} 34. Rb5 {[%clk 0:00:13]}  Ne4 {[%clk 0:00:05]} 35. Rb7 {[%clk 0:00:12]}  Kf6 {[%clk 0:00:02]} 36. Ng4+ {[%clk 0:00:10]}  Kg5 {[%clk 0:00:02]} 37. Be2 {[%clk 0:00:07]}  Nf5 {[%clk 0:00:02]} 38. h4+ {[%clk 0:00:08]}  Nxh4 {[%clk 0:00:02]} 39. gxh4+ {[%clk 0:00:08]}  Kxh4 {[%clk 0:00:02]} 40. Rxf7 {[%clk 0:00:08]}  h5 {[%clk 0:00:03]} 41. Ne5 {[%clk 0:00:08]}  Rc1+ {[%clk 0:00:03]} 42. Kg2 {[%clk 0:00:08]}  Ng5 {[%clk 0:00:01]} 43. Nxg6# {[%clk 0:00:08]} 1-0


[Site "https://www.chess.com"]

[Event "Titled Tuesday Blitz April 12 Early 2022"]
[White "Le, Tuan Minh"]
[Black "Grischuk, Alexander"]
[WhiteFideId "12401153"]
[BlackFideId "4126025"]
[WhiteElo "2450"]
[BlackElo "2762"]
[Result "1/2-1/2"]
[Round "07"]
[TimeControl "180+1"]
[Date "2022.04.12"]
[WhiteClock "0:00:05"]
[BlackClock "0:00:06"]

1. d4 {[%clk 0:03:00]}  e6 {[%clk 0:03:00]} 2. Nf3 {[%clk 0:03:00]}  c5 {[%clk 0:02:59]} 3. c3 {[%clk 0:03:01]}  Nf6 {[%clk 0:02:55]} 4. Bf4 {[%clk 0:03:00]}  Qb6 {[%clk 0:02:48]} 5. Qc2 {[%clk 0:03:00]}  d5 {[%clk 0:02:41]} 6. e3 {[%clk 0:02:58]}  Bd6 {[%clk 0:02:41]} 7. Bg3 {[%clk 0:02:57]}  Nbd7 {[%clk 0:02:39]} 8. Nbd2 {[%clk 0:02:56]}  Qc7 {[%clk 0:02:36]} 9. Bd3 {[%clk 0:02:51]}  b6 {[%clk 0:02:34]} 10. e4 {[%clk 0:02:13]}  Bxg3 {[%clk 0:02:30]} 11. hxg3 {[%clk 0:02:13]}  dxe4 {[%clk 0:02:31]} 12. Nxe4 {[%clk 0:02:13]}  Bb7 {[%clk 0:02:31]} 13. Rd1 {[%clk 0:02:03]}  cxd4 {[%clk 0:02:15]} 14. Nxf6+ {[%clk 0:02:00]}  Nxf6 {[%clk 0:02:15]} 15. Bb5+ {[%clk 0:01:57]}  Ke7 {[%clk 0:02:08]} 16. Rxd4 {[%clk 0:01:38]}  Rhd8 {[%clk 0:02:06]} 17. O-O {[%clk 0:01:13]}  Bxf3 {[%clk 0:02:02]} 18. Rxd8 {[%clk 0:01:12]}  Rxd8 {[%clk 0:02:02]} 19. gxf3 {[%clk 0:01:13]}  Qd6 {[%clk 0:01:57]} 20. Kg2 {[%clk 0:01:07]}  h5 {[%clk 0:01:45]} 21. Qa4 {[%clk 0:01:07]}  a5 {[%clk 0:01:43]} 22. Re1 {[%clk 0:01:07]}  Qc5 {[%clk 0:01:39]} 23. Re2 {[%clk 0:01:01]}  g5 {[%clk 0:01:31]} 24. Qc4 {[%clk 0:00:48]}  Qd6 {[%clk 0:01:00]} 25. Qc6 {[%clk 0:00:42]}  Nd5 {[%clk 0:00:47]} 26. Qb7+ {[%clk 0:00:37]}  Qc7 {[%clk 0:00:29]} 27. Bc6 {[%clk 0:00:32]}  Qxb7 {[%clk 0:00:28]} 28. Bxb7 {[%clk 0:00:33]}  f5 {[%clk 0:00:28]} 29. a3 {[%clk 0:00:25]}  Kf6 {[%clk 0:00:26]} 30. c4 {[%clk 0:00:24]}  Ne7 {[%clk 0:00:23]} 31. b4 {[%clk 0:00:24]}  Rd7 {[%clk 0:00:21]} 32. Ba6 {[%clk 0:00:23]}  axb4 {[%clk 0:00:20]} 33. axb4 {[%clk 0:00:24]}  Rc7 {[%clk 0:00:20]} 34. Bb5 {[%clk 0:00:17]}  Ng6 {[%clk 0:00:19]} 35. Rc2 {[%clk 0:00:16]}  Ne5 {[%clk 0:00:14]} 36. c5 {[%clk 0:00:16]}  bxc5 {[%clk 0:00:15]} 37. bxc5 {[%clk 0:00:16]}  g4 {[%clk 0:00:14]} 38. f4 {[%clk 0:00:16]}  Nf3 {[%clk 0:00:14]} 39. Rc4 {[%clk 0:00:12]}  h4 {[%clk 0:00:13]} 40. gxh4 {[%clk 0:00:12]}  Nxh4+ {[%clk 0:00:13]} 41. Kf1 {[%clk 0:00:11]}  Nf3 {[%clk 0:00:12]} 42. Ke2 {[%clk 0:00:11]}  e5 {[%clk 0:00:12]} 43. fxe5+ {[%clk 0:00:10]}  Kxe5 {[%clk 0:00:13]} 44. Ke3 {[%clk 0:00:07]}  Ng5 {[%clk 0:00:09]} 45. c6 {[%clk 0:00:06]}  Ne4 {[%clk 0:00:10]} 46. Ba4 {[%clk 0:00:05]}  f4+ {[%clk 0:00:09]} 47. Ke2 {[%clk 0:00:05]}  Kd5 {[%clk 0:00:07]} 48. Rc1 {[%clk 0:00:05]}  Kd4 {[%clk 0:00:06]} 49. Kf1 {[%clk 0:00:04]}  Nc3 {[%clk 0:00:05]} 50. Ra1 {[%clk 0:00:03]}  Nxa4 {[%clk 0:00:03]} 51. Rxa4+ {[%clk 0:00:04]}  Ke5 {[%clk 0:00:04]} 52. Rc4 {[%clk 0:00:04]}  g3 {[%clk 0:00:03]} 53. Kg2 {[%clk 0:00:02]}  gxf2 {[%clk 0:00:03]} 54. Kxf2 {[%clk 0:00:03]}  Kd5 {[%clk 0:00:04]} 55. Rxf4 {[%clk 0:00:04]}  Kxc6 {[%clk 0:00:04]} 56. Rc4+ {[%clk 0:00:04]}  Kb7 {[%clk 0:00:05]} 57. Rxc7+ {[%clk 0:00:05]}  Kxc7 {[%clk 0:00:06]} 1/2-1/2


[Site "https://www.chess.com"]

[Event "Titled Tuesday Blitz April 12 Early 2022"]
[White "Lianes Garcia, Marcos"]
[Black "Kozak, Adam"]
[WhiteFideId "32060777"]
[BlackFideId "753246"]
[WhiteElo "2310"]
[BlackElo "2459"]
[Result "1-0"]
[Round "07"]
[TimeControl "180+1"]
[Date "2022.04.12"]
[WhiteClock "0:00:11"]
[BlackClock "0:00:01"]

1. e4 {[%clk 0:03:00]}  c5 {[%clk 0:02:59]} 2. g3 {[%clk 0:03:01]}  h5 {[%clk 0:02:56]} 3. h3 {[%clk 0:03:00]}  Nc6 {[%clk 0:02:55]} 4. Bg2 {[%clk 0:03:00]}  e6 {[%clk 0:02:56]} 5. Ne2 {[%clk 0:03:00]}  g5 {[%clk 0:02:56]} 6. c3 {[%clk 0:03:00]}  c4 {[%clk 0:02:55]} 7. b3 {[%clk 0:02:59]}  Ne5 {[%clk 0:02:55]} 8. O-O {[%clk 0:02:55]}  g4 {[%clk 0:02:55]} 9. bxc4 {[%clk 0:02:51]}  gxh3 {[%clk 0:02:53]} 10. Bxh3 {[%clk 0:02:50]}  h4 {[%clk 0:02:53]} 11. g4 {[%clk 0:02:36]}  Qc7 {[%clk 0:02:44]} 12. f4 {[%clk 0:02:35]}  Nd3 {[%clk 0:02:44]} 13. Rf3 {[%clk 0:02:05]}  Qxc4 {[%clk 0:02:41]} 14. Nd4 {[%clk 0:02:06]}  Bc5 {[%clk 0:02:41]} 15. Na3 {[%clk 0:01:26]}  Bxd4+ {[%clk 0:02:38]} 16. Kg2 {[%clk 0:01:27]}  Nxf4+ {[%clk 0:02:38]} 17. Rxf4 {[%clk 0:01:25]}  Qc7 {[%clk 0:02:37]} 18. Qf3 {[%clk 0:01:17]}  Bc5 {[%clk 0:01:49]} 19. d4 {[%clk 0:01:11]}  Bxa3 {[%clk 0:01:44]} 20. Bxa3 {[%clk 0:01:12]}  f6 {[%clk 0:01:44]} 21. e5 {[%clk 0:01:07]}  Qc6 {[%clk 0:01:29]} 22. exf6 {[%clk 0:01:01]}  Kf7 {[%clk 0:01:27]} 23. g5 {[%clk 0:00:52]}  d6 {[%clk 0:01:20]} 24. g6+ {[%clk 0:00:49]}  Kxg6 {[%clk 0:01:18]} 25. f7 {[%clk 0:00:49]}  Qxf3+ {[%clk 0:01:17]} 26. Rxf3 {[%clk 0:00:45]}  Nf6 {[%clk 0:01:17]} 27. Raf1 {[%clk 0:00:45]}  Nh7 {[%clk 0:01:06]} 28. f8=Q {[%clk 0:00:41]}  Rxf8 {[%clk 0:01:06]} 29. Rxf8 {[%clk 0:00:42]}  Nxf8 {[%clk 0:01:07]} 30. Rxf8 {[%clk 0:00:43]}  b5 {[%clk 0:01:07]} 31. Kh2 {[%clk 0:00:37]}  Kg7 {[%clk 0:01:03]} 32. Bxd6 {[%clk 0:00:37]}  a5 {[%clk 0:01:00]} 33. Bxe6 {[%clk 0:00:33]}  Ra6 {[%clk 0:01:00]} 34. Rxc8 {[%clk 0:00:24]}  Rxd6 {[%clk 0:01:00]} 35. d5 {[%clk 0:00:24]}  Rb6 {[%clk 0:01:01]} 36. Rc6 {[%clk 0:00:21]}  Rb8 {[%clk 0:01:01]} 37. a3 {[%clk 0:00:20]}  Kf6 {[%clk 0:01:00]} 38. Rc8 {[%clk 0:00:18]}  Rb6 {[%clk 0:00:59]} 39. Rf8+ {[%clk 0:00:17]}  Ke5 {[%clk 0:00:59]} 40. Rf5+ {[%clk 0:00:18]}  Ke4 {[%clk 0:00:57]} 41. Kh3 {[%clk 0:00:16]}  Kd3 {[%clk 0:00:57]} 42. Rf3+ {[%clk 0:00:16]}  Kc2 {[%clk 0:00:57]} 43. Kxh4 {[%clk 0:00:16]}  Kb2 {[%clk 0:00:58]} 44. Rd3 {[%clk 0:00:16]}  Rd6 {[%clk 0:00:57]} 45. Kg5 {[%clk 0:00:16]}  Kxa3 {[%clk 0:00:58]} 46. Kf5 {[%clk 0:00:16]}  Kb3 {[%clk 0:00:53]} 47. Ke5 {[%clk 0:00:17]}  Rd8 {[%clk 0:00:54]} 48. d6+ {[%clk 0:00:17]}  Kc2 {[%clk 0:00:54]} 49. Bf5 {[%clk 0:00:13]}  b4 {[%clk 0:00:53]} 50. cxb4 {[%clk 0:00:12]}  axb4 {[%clk 0:00:54]} 51. d7 {[%clk 0:00:10]}  b3 {[%clk 0:00:54]} 52. Rd6+ {[%clk 0:00:09]}  Kc3 {[%clk 0:00:54]} 53. Rc6+ {[%clk 0:00:09]}  Kb2 {[%clk 0:00:47]} 54. Rc8 {[%clk 0:00:10]}  Rxd7 {[%clk 0:00:47]} 55. Bxd7 {[%clk 0:00:10]}  Ka1 {[%clk 0:00:48]} 56. Ra8+ {[%clk 0:00:10]}  Kb1 {[%clk 0:00:48]} 57. Be6 {[%clk 0:00:10]}  b2 {[%clk 0:00:49]} 58. Rb8 {[%clk 0:00:10]}  Ka1 {[%clk 0:00:48]} 59. Bf5 {[%clk 0:00:10]}  Ka2 {[%clk 0:00:48]} 60. Rb7 {[%clk 0:00:10]}  Ka1 {[%clk 0:00:48]} 61. Kd4 {[%clk 0:00:11]}  b1=Q {[%clk 0:00:49]} 62. Rxb1+ {[%clk 0:00:10]}  Ka2 {[%clk 0:00:50]} 63. Kc3 {[%clk 0:00:10]}  Ka3 {[%clk 0:00:01]} 64. Ra1# {[%clk 0:00:11]} 1-0


[Site "https://www.chess.com"]

[Event "Titled Tuesday Blitz April 12 Early 2022"]
[White "Lobachev, Yury"]
[Black "Pourkashiyan, Atousa"]
[WhiteFideId "24138177"]
[BlackFideId "12502014"]
[WhiteElo "2309"]
[BlackElo "2247"]
[Result "0-1"]
[Round "07"]
[TimeControl "180+1"]
[Date "2022.04.13"]
[WhiteClock "0:00:26"]
[BlackClock "0:00:57"]

1. c4 {[%clk 0:02:59]}  e6 {[%clk 0:02:58]} 2. Nc3 {[%clk 0:02:58]}  d5 {[%clk 0:02:59]} 3. cxd5 {[%clk 0:02:59]}  exd5 {[%clk 0:02:59]} 4. d4 {[%clk 0:03:00]}  Nf6 {[%clk 0:02:59]} 5. Nf3 {[%clk 0:03:00]}  Be7 {[%clk 0:03:00]} 6. g3 {[%clk 0:03:00]}  O-O {[%clk 0:03:00]} 7. Bg5 {[%clk 0:03:01]}  c6 {[%clk 0:03:00]} 8. Bg2 {[%clk 0:03:00]}  Bf5 {[%clk 0:03:01]} 9. O-O {[%clk 0:03:00]}  Nbd7 {[%clk 0:03:01]} 10. e3 {[%clk 0:03:00]}  Re8 {[%clk 0:03:01]} 11. a3 {[%clk 0:02:59]}  h6 {[%clk 0:03:02]} 12. Bxf6 {[%clk 0:02:59]}  Nxf6 {[%clk 0:03:03]} 13. b4 {[%clk 0:02:59]}  a6 {[%clk 0:03:02]} 14. Re1 {[%clk 0:02:49]}  Bd6 {[%clk 0:03:02]} 15. Qb3 {[%clk 0:02:43]}  Qd7 {[%clk 0:02:59]} 16. a4 {[%clk 0:02:41]}  Bh3 {[%clk 0:02:58]} 17. Bh1 {[%clk 0:02:40]}  a5 {[%clk 0:02:31]} 18. bxa5 {[%clk 0:02:18]}  Rxa5 {[%clk 0:02:27]} 19. Reb1 {[%clk 0:02:14]}  Rb8 {[%clk 0:02:11]} 20. Nd2 {[%clk 0:01:39]}  Ng4 {[%clk 0:02:01]} 21. Qc2 {[%clk 0:01:31]}  h5 {[%clk 0:01:52]} 22. Ne2 {[%clk 0:01:10]}  h4 {[%clk 0:01:38]} 23. Nb3 {[%clk 0:01:07]}  hxg3 {[%clk 0:01:33]} 24. hxg3 {[%clk 0:01:05]}  Raa8 {[%clk 0:01:28]} 25. Nc5 {[%clk 0:01:05]}  Qe7 {[%clk 0:01:18]} 26. e4 {[%clk 0:00:47]}  Qf6 {[%clk 0:01:05]} 27. Nc3 {[%clk 0:00:46]}  Qxd4 {[%clk 0:01:02]} 28. Nxb7 {[%clk 0:00:31]}  Bxg3 {[%clk 0:00:59]} 29. Nd1 {[%clk 0:00:26]}  Bh2# {[%clk 0:00:57]} 0-1


[Site "https://www.chess.com"]

[Event "Titled Tuesday Blitz April 12 Early 2022"]
[White "Lorparizangeneh, Shahin"]
[Black "Dreev, Aleksey"]
[WhiteFideId "12521604"]
[BlackFideId "4100107"]
[WhiteElo "2525"]
[BlackElo "2625"]
[Result "1-0"]
[Round "07"]
[TimeControl "180+1"]
[Date "2022.04.12"]
[WhiteClock "0:00:09"]
[BlackClock "0:00:05"]

1. b3 {[%clk 0:03:00]}  e5 {[%clk 0:02:59]} 2. Bb2 {[%clk 0:03:01]}  Nc6 {[%clk 0:02:59]} 3. Nf3 {[%clk 0:03:02]}  e4 {[%clk 0:02:59]} 4. Nd4 {[%clk 0:03:02]}  Nge7 {[%clk 0:02:53]} 5. c4 {[%clk 0:02:59]}  Nxd4 {[%clk 0:02:47]} 6. Bxd4 {[%clk 0:02:59]}  Nf5 {[%clk 0:02:47]} 7. Bb2 {[%clk 0:02:59]}  Bc5 {[%clk 0:02:47]} 8. e3 {[%clk 0:02:59]}  O-O {[%clk 0:02:46]} 9. Nc3 {[%clk 0:02:58]}  Re8 {[%clk 0:02:46]} 10. g3 {[%clk 0:02:49]}  c6 {[%clk 0:02:46]} 11. Bg2 {[%clk 0:02:42]}  d5 {[%clk 0:02:46]} 12. O-O {[%clk 0:02:40]}  Be6 {[%clk 0:02:45]} 13. d3 {[%clk 0:02:32]}  exd3 {[%clk 0:01:34]} 14. cxd5 {[%clk 0:02:32]}  cxd5 {[%clk 0:01:26]} 15. Qxd3 {[%clk 0:02:32]}  d4 {[%clk 0:01:26]} 16. Na4 {[%clk 0:02:28]}  Bb6 {[%clk 0:01:13]} 17. Nxb6 {[%clk 0:02:23]}  Qxb6 {[%clk 0:01:12]} 18. e4 {[%clk 0:02:22]}  Ne7 {[%clk 0:01:09]} 19. Bxd4 {[%clk 0:02:22]}  Red8 {[%clk 0:01:05]} 20. Rfd1 {[%clk 0:02:16]}  Qa5 {[%clk 0:01:01]} 21. Qe3 {[%clk 0:02:12]}  Nc6 {[%clk 0:00:57]} 22. Bc3 {[%clk 0:02:09]}  Qa3 {[%clk 0:00:42]} 23. Qg5 {[%clk 0:02:01]}  Qf8 {[%clk 0:00:41]} 24. h4 {[%clk 0:01:52]}  h6 {[%clk 0:00:42]} 25. Qf4 {[%clk 0:01:51]}  Qa3 {[%clk 0:00:40]} 26. Rd2 {[%clk 0:01:27]}  Rxd2 {[%clk 0:00:37]} 27. Qxd2 {[%clk 0:01:28]}  Rd8 {[%clk 0:00:37]} 28. Qe3 {[%clk 0:01:27]}  a5 {[%clk 0:00:21]} 29. f4 {[%clk 0:01:21]}  Bg4 {[%clk 0:00:19]} 30. f5 {[%clk 0:01:17]}  Qd6 {[%clk 0:00:15]} 31. f6 {[%clk 0:01:15]}  Qd3 {[%clk 0:00:15]} 32. Re1 {[%clk 0:00:49]}  Qxe3+ {[%clk 0:00:15]} 33. Rxe3 {[%clk 0:00:50]}  Rd1+ {[%clk 0:00:15]} 34. Kh2 {[%clk 0:00:50]}  gxf6 {[%clk 0:00:15]} 35. Bxf6 {[%clk 0:00:49]}  Rd2 {[%clk 0:00:15]} 36. a3 {[%clk 0:00:42]}  Kh7 {[%clk 0:00:15]} 37. e5 {[%clk 0:00:32]}  Kg6 {[%clk 0:00:15]} 38. Kg1 {[%clk 0:00:32]}  h5 {[%clk 0:00:14]} 39. Be4+ {[%clk 0:00:30]}  Bf5 {[%clk 0:00:14]} 40. Bf3 {[%clk 0:00:26]}  Nd4 {[%clk 0:00:13]} 41. Bxb7 {[%clk 0:00:23]}  Ne2+ {[%clk 0:00:10]} 42. Kf2 {[%clk 0:00:22]}  Nd4+ {[%clk 0:00:07]} 43. Ke1 {[%clk 0:00:19]}  Rb2 {[%clk 0:00:05]} 44. Rc3 {[%clk 0:00:16]}  Rb1+ {[%clk 0:00:04]} 45. Kd2 {[%clk 0:00:15]}  Nxb3+ {[%clk 0:00:04]} 46. Ke3 {[%clk 0:00:14]}  Nc5 {[%clk 0:00:03]} 47. Rxc5 {[%clk 0:00:14]}  Rxb7 {[%clk 0:00:03]} 48. Rxa5 {[%clk 0:00:15]}  Rb3+ {[%clk 0:00:03]} 49. Kd4 {[%clk 0:00:15]}  Rd3+ {[%clk 0:00:03]} 50. Kc5 {[%clk 0:00:15]}  Rxg3 {[%clk 0:00:03]} 51. Ra8 {[%clk 0:00:15]}  Rc3+ {[%clk 0:00:03]} 52. Kd6 {[%clk 0:00:16]}  Rd3+ {[%clk 0:00:03]} 53. Ke7 {[%clk 0:00:16]}  Be6 {[%clk 0:00:04]} 54. Rg8+ {[%clk 0:00:16]}  Kf5 {[%clk 0:00:04]} 55. Rg5+ {[%clk 0:00:16]}  Ke4 {[%clk 0:00:03]} 56. Rxh5 {[%clk 0:00:17]}  Rd7+ {[%clk 0:00:03]} 57. Ke8 {[%clk 0:00:17]}  Ra7 {[%clk 0:00:03]} 58. Rh7 {[%clk 0:00:14]}  Ra8+ {[%clk 0:00:03]} 59. Ke7 {[%clk 0:00:14]}  Rxa3 {[%clk 0:00:03]} 60. h5 {[%clk 0:00:14]}  Kf5 {[%clk 0:00:02]} 61. Kf8 {[%clk 0:00:12]}  Ra8+ {[%clk 0:00:02]} 62. Kg7 {[%clk 0:00:13]}  Kg4 {[%clk 0:00:01]} 63. h6 {[%clk 0:00:13]}  Kh5 {[%clk 0:00:02]} 64. Be7 {[%clk 0:00:11]}  Re8 {[%clk 0:00:02]} 65. Kf6 {[%clk 0:00:10]}  Rg8 {[%clk 0:00:02]} 66. Rg7 {[%clk 0:00:10]}  Rh8 {[%clk 0:00:02]} 67. h7 {[%clk 0:00:09]}  Kh6 {[%clk 0:00:03]} 68. Rg1 {[%clk 0:00:08]}  Kxh7 {[%clk 0:00:02]} 69. Bc5 {[%clk 0:00:06]}  Rc8 {[%clk 0:00:02]} 70. Bd6 {[%clk 0:00:06]}  Rc4 {[%clk 0:00:01]} 71. Rh1+ {[%clk 0:00:05]}  Kg8 {[%clk 0:00:02]} 72. Rg1+ {[%clk 0:00:05]}  Rg4 {[%clk 0:00:02]} 73. Rxg4+ {[%clk 0:00:05]}  Bxg4 {[%clk 0:00:02]} 74. Be7 {[%clk 0:00:06]}  Be6 {[%clk 0:00:03]} 75. Bd6 {[%clk 0:00:06]}  Bd5 {[%clk 0:00:03]} 76. Be7 {[%clk 0:00:07]}  Be6 {[%clk 0:00:04]} 77. Bd6 {[%clk 0:00:08]}  Bd5 {[%clk 0:00:05]} 78. Be7 {[%clk 0:00:09]} 1-0


[Site "https://www.chess.com"]